bitfinex/quotes_ETHUSD_20250616
["timestamp","ask_amount","ask_price","bid_price","bid_amount"]
[1750107844894,7.49172371,2671.7,2671.1,0.05]
[1750107844895,3.74360817,2671.3,2671.1,0.05]
[1750107845096,3.74363581,2671.2,2671.1,0.05]
[1750107845466,4.29352128,2671.3,2671.1,0.05]
[1750107845665,3.74363581,2671.2,2671.1,0.05]
[1750107847912,4.29363581,2671.2,2671.1,0.05]
[1750107848080,15.93555004,2671.2,2671.1,0.05]
[1750107849276,16.12262934,2671.2,2671.1,0.05]
[1750107849481,3.74503782,2670.2,2670.1,0.05]
[1750107850901,4.29503782,2670.2,2670.1,0.05]
[1750107851598,14.29503782,2670.2,2670.1,0.05]
[1750107851784,16.385088,2670.2,2670.1,0.05]
[1750107852664,18.42206582,2670.2,2670.1,0.05]
[1750107853801,14.677028,2670.2,2670.1,0.05]
[1750107855114,18.42206582,2670.2,2670.1,0.05]
[1750107856067,14.677028,2670.2,2670.1,0.05]
[1750107858500,2.03697782,2670.2,2670.1,3.79517808]
[1750107858703,2.03697782,2670.2,2670.1,4.62522822]
[1750107859004,2.03697782,2670.2,2670.1,0.05]
[1750107860275,5.78201564,2670.2,2670.1,0.05]
[1750107860474,6.3602172,2670.2,2670.1,0.05]
[1750107860674,6.9102172,2670.2,2670.1,0.05]
[1750107861123,16.9102172,2670.2,2670.1,0.05]
[1750107862998,17.6819172,2670.2,2670.1,0.05]
[1750107863740,23.8639172,2670.2,2670.1,0.05]
[1750107866187,24.24756693,2670.2,2670.1,0.05]
[1750107867031,26.49656693,2670.2,2670.1,0.05]
[1750107867228,27.47709829,2670.2,2670.1,0.05]
[1750107869242,27.47709829,2670.2,2669.1,0.05]
[1750107869243,4.67734088,2669.2,2669.1,0.05]
[1750107869537,14.67734088,2669.2,2669.1,0.05]
[1750107869766,22.48634088,2669.2,2669.1,0.05]
[1750107870166,14.67734088,2669.2,2669.1,0.05]
[1750107870336,22.48734088,2669.2,2669.1,0.05]
[1750107870539,25.08475594,2669.2,2669.1,0.05]
[1750107870907,25.77943131,2669.2,2669.1,0.05]
[1750107871403,26.25166246,2669.2,2669.1,0.05]
[1750107871636,18.44166246,2669.2,2669.1,0.05]
[1750107871902,17.4611311,2669.2,2669.1,0.05]
[1750107872153,25.08475594,2669.2,2669.1,0.05]
[1750107872368,25.08575594,2669.2,2669.1,0.05]
[1750107873157,6.72475594,2669.2,2669.1,0.05]
[1750107873458,12.10444088,2669.2,2669.1,0.05]
[1750107873955,5.37044088,2669.2,2669.1,0.05]
[1750107874155,21.55444088,2669.2,2669.1,0.05]
[1750107874457,22.10444088,2669.2,2669.1,0.05]
[1750107874662,23.41644109,2669.2,2669.1,0.05]
[1750107874871,26.0837575,2669.2,2669.1,0.05]
[1750107877833,18.2757575,2669.2,2669.1,0.05]
[1750107878076,26.0837575,2669.2,2669.1,0.05]
[1750107879242,28.3327575,2669.2,2669.1,0.05]
[1750107879840,22.1487575,2669.2,2669.1,0.05]
[1750107880042,28.3337575,2669.2,2669.1,0.05]
[1750107883960,28.84205771,2669.2,2669.1,0.05]
[1750107885979,33.25728886,2669.2,2669.1,0.05]
[1750107886182,6.545862,2668.9,2668.8,1.0]
[1750107886382,23.558462,2668.9,2668.8,1.0]
[1750107886702,17.373462,2668.9,2668.8,1.0]
[1750107886910,24.354862,2668.9,2668.8,1.0]
[1750107888622,25.154562,2668.9,2668.8,1.0]
[1750107888829,28.33017862,2668.9,2668.8,1.0]
[1750107889044,28.83847883,2668.9,2668.8,1.0]
[1750107890250,22.65347883,2668.9,2668.8,1.0]
[1750107890407,28.33117862,2668.9,2668.8,1.0]
[1750107896066,32.27417862,2668.9,2668.8,1.0]
[1750107896248,28.33117862,2668.9,2668.8,1.0]
[1750107898526,20.52117862,2668.9,2668.8,1.0]
[1750107898740,28.33117862,2668.9,2668.8,1.0]
[1750107898934,19.72147862,2668.9,2668.8,1.0]
[1750107899229,13.746862,2668.9,2668.8,1.0]
[1750107899424,21.556862,2668.9,2668.8,1.0]
[1750107899626,22.106862,2668.9,2668.8,1.0]
[1750107899857,21.556862,2668.9,2668.8,1.0]
[1750107900059,13.746862,2668.9,2668.8,1.0]
[1750107900243,22.106862,2668.9,2668.8,1.0]
[1750107900446,15.371862,2668.9,2668.8,1.0]
[1750107900644,5.371862,2668.9,2668.8,1.7634]
[1750107900824,15.921862,2668.9,2668.8,1.7634]
[1750107901028,5.371862,2668.9,2668.8,1.7634]
[1750107901627,1.625,2668.9,2668.8,1.7634]
[1750107903362,3.746862,2668.9,2668.8,1.7634]
[1750107903539,3.74679724,2669.0,2668.8,1.7634]
[1750107903744,3.746862,2668.9,2668.8,1.7634]
[1750107905467,5.65862147,2668.9,2668.8,1.7634]
[1750107905769,3.746862,2668.9,2668.8,1.7634]
[1750107906734,4.29678799,2669.0,2668.8,1.7634]
[1750107906935,3.746862,2668.9,2668.8,1.7634]
[1750107907331,1.624,2669.1,2668.8,1.7634]
[1750107907537,3.74684841,2669.0,2668.8,1.7634]
[1750107908168,3.746862,2668.9,2668.8,1.7634]
[1750107909238,5.37066702,2669.1,2668.9,0.7677]
[1750107909436,3.74672161,2669.0,2668.9,0.7677]
[1750107909837,5.37066159,2669.1,2668.9,0.7677]
[1750107910049,3.74672161,2669.0,2668.9,0.7677]
[1750107910785,5.37063823,2669.1,2668.9,0.7677]
[1750107911783,3.74672161,2669.0,2668.9,0.7677]
[1750107912346,3.74672161,2669.0,2668.4,0.8032]
[1750107912347,3.7470693,2668.8,2668.4,0.8032]
[1750107913691,3.7470878,2668.8,2668.4,0.8032]
[1750107914684,3.74672161,2669.0,2668.4,0.8032]
[1750107914685,3.74730172,2668.6,2668.4,0.8032]
[1750107915048,4.29742364,2668.5,2668.4,0.8032]
[1750107916856,0.55,2668.5,2668.4,0.8032]
[1750107917201,0.55,2668.6,2668.4,0.8032]
[1750107917806,3.74742364,2668.5,2668.4,0.8032]
[1750107918096,3.74742364,2668.5,2668.3,1.0]
[1750107918703,3.74756408,2668.4,2668.3,1.0]
[1750107919198,4.29756408,2668.4,2668.3,1.0]
[1750107919387,5.10206519,2668.4,2668.3,1.0]
[1750107919761,15.10206519,2668.4,2668.3,1.0]
[1750107921979,21.28506519,2668.4,2668.3,1.0]
[1750107923413,15.10206519,2668.4,2668.3,1.0]
[1750107923586,22.90906519,2668.4,2668.3,1.0]
[1750107925048,23.28998184,2668.4,2668.3,1.0]
[1750107926820,3.74686247,2668.9,2668.3,1.0]
[1750107926821,0.7931,2669.0,2668.3,1.8211]
[1750107927016,5.37092412,2668.9,2668.4,3.74747314]
[1750107927217,5.37092412,2668.9,2668.5,0.8063]
[1750107928071,10.0,2668.8,2668.5,0.8063]
[1750107928268,3.74701904,2668.8,2668.5,0.8063]
[1750107934057,3.74715191,2668.7,2668.5,0.8063]
[1750107934260,4.29756408,2668.4,2668.3,1.0]
[1750107936887,11.622,2668.6,2668.3,1.0]
[1750107937050,15.3693526,2668.6,2668.3,1.0]
[1750107938182,11.622,2668.6,2668.3,4.74768028]
[1750107938498,1.622,2668.6,2668.5,0.7716]
[1750107938783,0.55,2668.9,2668.5,0.7716]
[1750107938956,10.55,2668.9,2668.5,0.7716]
[1750107939359,4.29687973,2668.9,2668.5,4.51895232]
[1750107939681,0.55,2668.9,2668.5,4.51895232]
[1750107939848,4.29686364,2668.9,2668.5,4.51895232]
[1750107940062,0.55,2668.9,2668.5,4.51895232]
[1750107940463,4.29686233,2668.9,2668.5,0.7716]
[1750107940703,4.29687481,2668.9,2668.5,0.7716]
[1750107940913,3.74714879,2668.7,2668.5,0.7716]
[1750107941219,3.74728321,2668.6,2668.5,0.7716]
[1750107941572,4.29721449,2668.7,2668.5,0.7716]
[1750107942609,3.74729917,2668.6,2668.3,1.0]
[1750107942919,4.29722554,2668.7,2668.3,1.0]
[1750107943580,3.74729718,2668.6,2668.3,1.0]
[1750107944102,4.29722351,2668.7,2668.3,1.0]
[1750107944400,3.74728375,2668.6,2668.3,1.0]
[1750107945107,3.74750086,2668.5,2668.3,1.0]
[1750107945409,3.74735046,2668.6,2668.3,1.0]
[1750107947687,3.74717581,2668.7,2668.3,1.0]
[1750107947688,13.74722521,2668.7,2668.3,1.0]
[1750107947890,3.74728803,2668.6,2668.3,1.0]
[1750107949814,0.55,2668.8,2668.3,1.0]
[1750107949981,3.74734101,2668.6,2668.3,1.0]
[1750107951431,0.55,2668.8,2668.3,1.0]
[1750107951730,3.74722203,2668.7,2668.3,4.74769711]
[1750107952721,3.74722203,2668.7,2668.3,4.70608111]
[1750107953309,10.0,2668.7,2668.3,4.70608111]
[1750107954126,10.0,2668.7,2668.4,3.74753477]
[1750107955123,10.0,2668.7,2668.3,4.70600694]
[1750107955759,10.0,2668.7,2668.4,3.74754983]
[1750107956614,10.0,2668.7,2668.3,0.958384]
[1750107956615,10.0,2668.7,2668.5,3.74732565]
[1750107956820,4.33882167,2668.9,2668.4,4.55639344]
[1750107958130,0.55,2668.9,2668.5,3.74742337]
[1750107958319,0.55,2668.9,2668.6,3.74725353]
[1750107958520,0.55,2668.9,2668.7,0.7853]
[1750107959240,1.622,2669.0,2668.8,3.74697863]
[1750107959449,6.82148884,2669.4,2668.9,3.74677488]
[1750107959754,3.07531174,2669.4,2668.9,0.7853]
[1750107960054,10.0,2669.3,2669.1,3.74657803]
[1750107960259,3.07531174,2669.4,2669.1,3.74657803]
[1750107960260,3.07531174,2669.4,2669.1,3.74644987]
[1750107960431,3.07531174,2669.4,2669.0,3.74658437]
[1750107960635,6.82148909,2669.4,2669.0,3.74658437]
[1750107960855,3.07531174,2669.4,2669.0,3.74658437]
[1750107961060,1.622,2669.4,2669.1,4.50207016]
[1750107961254,3.74608381,2669.5,2669.1,4.50207016]
[1750107961430,0.55,2669.6,2669.2,3.74641689]
[1750107961636,4.29594678,2669.6,2669.1,4.50207016]
[1750107962027,10.0,2669.5,2669.1,4.50207016]
[1750107962362,14.29594678,2669.6,2669.1,4.50207016]
[1750107962561,10.0,2669.5,2669.1,0.7555]
[1750107962756,10.0,2669.5,2669.1,4.50206137]
[1750107962757,3.74607107,2669.5,2669.1,4.50206137]
[1750107963341,3.74607107,2669.5,2669.1,0.7555]
[1750107964179,14.29595831,2669.6,2669.1,4.50207858]
[1750107964384,10.0,2669.6,2669.2,3.7463386]
[1750107964546,10.0,2669.6,2669.1,4.50201996]
[1750107964547,13.74590568,2669.6,2669.1,4.50201996]
[1750107966359,10.0,2669.6,2669.1,4.50201996]
[1750107966560,0.55,2669.2,2668.6,0.7703]
[1750107966884,3.74686616,2668.9,2668.6,0.7703]
[1750107967366,3.74683819,2669.0,2668.6,0.7703]
[1750107967563,3.74687804,2668.9,2668.6,0.7703]
[1750107968771,3.74694584,2668.9,2668.6,0.7703]
[1750107969077,3.74701398,2668.8,2668.6,0.7703]
[1750107969705,3.74695608,2668.9,2668.6,0.7703]
[1750107970110,0.9114704,2668.9,2668.4,0.7553]
[1750107970269,3.7474033,2668.6,2668.4,0.7553]
[1750107970469,3.74721737,2668.7,2668.4,0.7553]
[1750107972702,3.74728342,2668.6,2668.4,0.7553]
[1750107975377,3.74756408,2668.4,2668.3,0.958384]
[1750107976715,4.29756408,2668.4,2668.3,0.958384]
[1750107978400,5.11706408,2668.4,2668.3,0.958384]
[1750107978595,15.11706408,2668.4,2668.3,0.958384]
[1750107984512,15.496959,2668.4,2668.3,0.958384]
[1750107984713,17.56109114,2668.4,2668.3,0.958384]
[1750107989878,19.81209114,2668.4,2668.3,0.958384]
[1750107990875,4.29784498,2668.2,2668.1,0.05]
[1750107991176,0.55,2667.3,2666.2,0.79548214]
[1750107991379,0.55,2667.3,2666.5,0.7686]
[1750107991550,1.622,2667.2,2666.9,0.7686]
[1750107991954,5.37125492,2667.2,2666.9,0.7686]
[1750107992153,3.74942429,2667.1,2666.9,0.7686]
[1750107992475,3.7495313,2667.0,2666.9,0.7686]
[1750107992876,1.622,2667.2,2666.9,0.7686]
[1750107993042,2.172,2667.3,2666.9,4.51820687]
[1750107993242,2.172,2667.3,2666.9,5.34501251]
[1750107993442,5.92112484,2667.3,2666.9,1.59540564]
[1750107994243,5.92112484,2667.3,2666.9,0.7686]
[1750107994439,3.74928187,2667.2,2666.9,0.7686]
[1750107995053,5.92117949,2667.3,2666.9,0.7686]
[1750107995269,3.7493244,2667.2,2666.9,0.7686]
[1750107995682,3.74944392,2667.1,2666.9,0.7686]
[1750107996985,10.0,2667.1,2666.9,0.7686]
[1750107997684,2.50824369,2667.2,2666.9,0.7686]
[1750107998562,2.50824369,2667.2,2666.9,4.51824002]
[1750107999063,2.50824369,2667.2,2667.0,3.74945263]
[1750107999262,2.50824369,2667.2,2666.9,4.51820429]
[1750107999462,2.50824369,2667.2,2666.9,0.7686]
[1750108000064,3.74939607,2667.1,2666.9,0.7686]
[1750108001403,3.74939607,2667.1,2666.2,0.02688214]
[1750108001404,0.55,2666.8,2666.2,0.02688214]
[1750108001609,1.62,2667.0,2666.8,0.7772]
[1750108002806,1.62,2667.0,2666.8,4.52699855]
[1750108003303,1.62,2667.0,2666.8,0.7772]
[1750108004906,4.29943002,2667.1,2666.8,0.7772]
[1750108005093,5.91943002,2667.1,2666.8,0.7772]
[1750108005781,5.91945169,2667.1,2666.8,0.7772]
[1750108007403,3.74953759,2667.0,2666.8,0.7772]
[1750108008206,5.91944628,2667.1,2666.8,0.7772]
[1750108008407,4.00559599,2667.1,2666.6,0.8149]
[1750108008564,3.74988745,2666.8,2666.6,0.8149]
[1750108008768,3.74988745,2666.8,2666.2,0.02688214]
[1750108008769,0.55,2666.7,2666.2,0.02688214]
[1750108008999,10.55,2666.7,2666.3,3.75042881]
[1750108009203,0.55,2666.7,2666.3,3.75050091]
[1750108009505,3.75003292,2666.7,2666.2,4.59239616]
[1750108009802,4.29988947,2666.8,2666.3,3.75050728]
[1750108010715,13.74969318,2666.9,2666.4,3.75029156]
[1750108012097,3.74983808,2666.8,2666.3,3.75043508]
[1750108012720,3.74969275,2666.9,2666.5,3.75020427]
[1750108013106,3.74969275,2666.9,2666.4,3.75029535]
[1750108013627,3.74969275,2666.9,2666.5,3.7502195]
[1750108013927,3.74969275,2666.9,2666.4,3.75029552]
[1750108015332,3.74982307,2666.8,2666.3,3.75044498]
[1750108016739,3.74982307,2666.8,2666.4,3.75035301]
[1750108016908,14.29960579,2667.0,2666.5,3.75021652]
[1750108017108,15.78637577,2667.0,2666.6,3.75009234]
[1750108017328,15.78637577,2667.0,2666.6,4.57069234]
[1750108017634,15.7863609,2667.0,2666.6,4.57068377]
[1750108017837,10.55,2667.0,2666.6,4.57068377]
[1750108018644,15.36941261,2667.1,2666.7,3.74986224]
[1750108018820,11.62,2667.1,2666.6,4.57061271]
[1750108019016,15.36941117,2667.1,2666.6,4.57061271]
[1750108019534,10.0,2667.1,2666.7,0.7944]
[1750108020243,13.74941997,2667.1,2666.7,0.7944]
[1750108020444,3.74953891,2667.0,2666.7,0.7944]
[1750108021028,3.74953891,2667.0,2666.4,0.8272]
[1750108021029,3.74978227,2666.9,2666.4,0.8272]
[1750108021229,3.74995569,2666.7,2666.4,0.8272]
[1750108022623,3.74968143,2666.9,2666.4,0.8272]
[1750108022624,0.55,2666.9,2666.4,0.8272]
[1750108022821,3.75051569,2666.3,2666.2,0.02688214]
[1750108023021,3.75044835,2666.4,2666.2,0.02688214]
[1750108023250,4.30051569,2666.3,2666.2,0.02688214]
[1750108023575,4.37016319,2666.4,2666.2,0.02688214]
[1750108023576,0.61971484,2666.4,2666.2,0.02688214]
[1750108023866,3.75039191,2666.4,2666.2,0.02688214]
[1750108024084,13.75031296,2666.5,2666.2,0.02688214]
[1750108024435,10.0,2666.5,2666.2,0.02688214]
[1750108024781,10.0,2666.5,2666.2,3.77752857]
[1750108024968,10.0,2666.5,2666.2,0.02688214]
[1750108025566,10.0,2666.5,2666.2,3.77753367]
[1750108025720,10.0,2666.5,2666.2,0.02688214]
[1750108025915,1.62,2666.7,2666.2,3.77753788]
[1750108026150,4.30010224,2666.6,2666.2,0.02688214]
[1750108026655,1.62,2666.7,2666.2,0.02688214]
[1750108026830,1.62,2666.7,2666.3,3.75043521]
[1750108027161,1.62,2666.7,2666.4,3.75035773]
[1750108027519,1.62,2666.7,2666.3,3.75044264]
[1750108028132,1.62,2666.7,2666.4,3.75034916]
[1750108028327,1.62,2666.7,2666.5,3.75016622]
[1750108028645,0.55,2666.9,2666.4,4.57753259]
[1750108028827,3.74959083,2667.0,2666.6,3.75008875]
[1750108028828,1.619,2667.0,2666.6,3.75008875]
[1750108029033,1.619,2667.0,2666.8,3.7497115]
[1750108029543,1.619,2667.0,2666.9,3.7496719]
[1750108029740,1.619,2667.0,2666.8,3.74975155]
[1750108030458,15.9832485,2667.5,2666.8,0.7883]
[1750108030459,3.04526999,2667.5,2666.8,0.7883]
[1750108030645,3.04526999,2667.5,2667.1,3.74933609]
[1750108031241,13.04526999,2667.5,2667.1,3.74933609]
[1750108031561,3.04526999,2667.5,2667.1,3.74934368]
[1750108033236,6.79410401,2667.5,2667.1,3.74934368]
[1750108033534,1.42626999,2667.5,2667.2,0.7883]
[1750108034560,5.17510828,2667.5,2667.2,0.7883]
[1750108034762,1.42626999,2667.5,2667.2,0.7883]
[1750108034963,3.74917694,2667.3,2666.8,3.74973181]
[1750108035466,5.36817694,2667.3,2666.8,3.74973181]
[1750108035629,3.7492538,2667.2,2666.7,3.74989345]
[1750108036327,3.7492538,2667.2,2666.8,3.74979294]
[1750108036592,5.36818017,2667.3,2666.8,3.74979294]
[1750108036941,3.74925382,2667.2,2666.8,3.74979294]
[1750108038331,6.70466288,2667.3,2666.8,3.74979294]
[1750108039462,0.55,2667.1,2666.6,4.50581633]
[1750108039629,0.55,2667.1,2666.7,3.74992406]
[1750108040744,10.0,2667.2,2666.8,3.74973687]
[1750108041145,13.74925419,2667.2,2666.7,3.74988511]
[1750108042061,14.21769868,2667.2,2666.7,3.74988511]
[1750108042762,3.74939716,2667.1,2666.6,10.68378514]
[1750108043576,4.29939072,2667.1,2666.6,10.6828563]
[1750108045163,10.0,2667.2,2666.6,6.9328]
[1750108045388,1.619,2667.3,2666.8,3.74975382]
[1750108045389,11.619,2667.3,2666.8,3.74975382]
[1750108045562,3.7492576,2667.2,2666.8,3.74975382]
[1750108046558,0.55,2667.3,2666.9,0.8251]
[1750108046762,0.55,2667.3,2667.0,3.74941177]
[1750108047147,3.74926808,2667.2,2666.9,0.8251]
[1750108047348,3.74926808,2667.2,2666.8,3.74973255]
[1750108047349,3.74926808,2667.2,2666.8,9.92673255]
[1750108048085,0.55,2667.3,2666.9,3.74967184]
[1750108048248,4.29911094,2667.3,2666.9,3.74967184]
[1750108048661,4.29911094,2667.3,2666.8,9.92676254]
[1750108049083,0.55,2667.3,2666.9,3.7496058]
[1750108049288,1.619,2667.4,2667.0,3.74945767]
[1750108049982,5.36799897,2667.4,2667.0,3.74945767]
[1750108050184,5.36799897,2667.4,2666.9,3.74960762]
[1750108050356,5.36799897,2667.4,2666.9,3.7871001]
[1750108050973,5.36799897,2667.4,2666.9,3.74960762]
[1750108051174,3.74912236,2667.3,2666.8,6.177]
[1750108051374,1.619,2667.4,2666.9,3.74956224]
[1750108051375,5.36804604,2667.4,2666.9,3.74956224]
[1750108051561,3.74914379,2667.3,2666.9,3.74956224]
[1750108052166,5.36804413,2667.4,2666.9,3.74956224]
[1750108052990,5.36804413,2667.4,2667.0,3.74951368]
[1750108053185,1.619,2667.4,2667.0,3.74951368]
[1750108053491,7.5058,2667.7,2667.0,1.36762642]
[1750108053492,1.3298,2667.7,2667.0,1.36762642]
[1750108053689,2.251,2668.2,2666.8,6.177]
[1750108053690,2.3918,2668.0,2667.1,0.85898882]
[1750108053860,2.3918,2668.0,2667.1,0.8215]
[1750108054059,4.52156701,2667.6,2667.2,6.176]
[1750108054772,0.7728,2667.6,2667.2,6.176]
[1750108055288,4.52156416,2667.6,2667.2,6.176]
[1750108055866,4.52156416,2667.6,2667.2,9.92523555]
[1750108056187,0.7728,2667.6,2667.2,9.92523555]
[1750108057675,4.52149563,2667.6,2667.2,9.92523555]
[1750108058516,0.7728,2667.6,2667.3,3.74904649]
[1750108058819,0.7728,2667.6,2667.2,9.92519719]
[1750108059886,4.52151099,2667.6,2667.2,9.92519719]
[1750108060211,0.7728,2667.6,2667.2,9.92519719]
[1750108062228,10.0,2667.3,2666.8,1.92505143]
[1750108062382,13.74904986,2667.4,2667.1,6.175]
[1750108062932,3.74912459,2667.3,2667.1,6.175]
[1750108063375,13.74903932,2667.4,2667.1,6.175]
[1750108063569,10.0,2667.4,2667.1,6.175]
[1750108064218,13.74899888,2667.4,2667.1,6.175]
[1750108065327,10.55,2667.5,2667.1,6.175]
[1750108065610,3.74898006,2667.4,2667.1,6.175]
[1750108066517,14.29889403,2667.5,2667.1,6.175]
[1750108067419,3.74897371,2667.4,2667.1,6.175]
[1750108067928,5.71372645,2667.4,2667.1,6.175]
[1750108068227,3.74897371,2667.4,2667.1,6.175]
[1750108069021,0.55,2667.5,2667.1,9.92433415]
[1750108069225,14.29884218,2667.5,2667.1,9.92433415]
[1750108069531,14.29884218,2667.5,2667.1,6.175]
[1750108070329,14.29884218,2667.5,2667.0,3.74946405]
[1750108070525,3.74899202,2667.4,2667.0,9.92346405]
[1750108071936,3.74911598,2667.3,2667.0,6.174]
[1750108072627,3.74903042,2667.4,2667.0,6.174]
[1750108073824,3.74914196,2667.3,2666.8,4.56330958]
[1750108074026,3.74914196,2667.3,2666.9,6.174]
[1750108074430,10.0,2667.4,2667.0,6.174]
[1750108074722,16.33897321,2667.4,2667.0,6.174]
[1750108075030,3.74918186,2667.3,2666.8,4.56330958]
[1750108075231,3.74918186,2667.3,2666.9,6.174]
[1750108075394,3.74927615,2667.2,2666.8,4.56330958]
[1750108075594,3.74927615,2667.2,2666.9,6.174]
[1750108078126,4.29917482,2667.3,2666.9,9.9236711]
[1750108078694,3.74927018,2667.2,2666.9,6.174]
[1750108078920,4.29915822,2667.3,2666.9,6.174]
[1750108079514,6.36296796,2667.3,2666.9,6.174]
[1750108079934,2.61380974,2667.3,2666.8,0.8136]
[1750108080142,4.51653159,2667.2,2666.7,9.92284246]
[1750108080541,4.51653159,2667.2,2666.8,3.74979826]
[1750108081413,4.51653159,2667.2,2666.7,9.92288911]
[1750108081610,6.60447719,2667.2,2666.8,3.7498107]
[1750108082839,6.60447719,2667.2,2666.7,9.92287721]
[1750108083221,10.55,2667.1,2666.6,1.89745143]
[1750108083419,10.55,2667.1,2666.6,10.70908253]
[1750108083420,14.29946482,2667.1,2666.6,10.70908253]
[1750108083643,3.74953268,2667.0,2666.6,6.959]
[1750108084139,3.74953259,2667.0,2666.6,6.173]
[1750108084342,3.7495313,2667.0,2666.6,6.173]
[1750108084705,3.74967399,2666.9,2666.6,6.173]
[1750108084929,3.74961128,2667.0,2666.6,6.173]
[1750108085342,3.74961128,2667.0,2666.5,3.75016964]
[1750108085541,3.74961128,2667.0,2666.6,6.173]
[1750108087343,0.55,2666.9,2666.3,1.89125143]
[1750108087546,0.55,2666.9,2666.3,6.9518]
[1750108087547,3.75007599,2666.7,2666.3,6.9518]
[1750108087732,3.75007599,2666.7,2666.3,10.70230407]
[1750108087951,3.75007599,2666.7,2666.3,6.9518]
[1750108089153,5.12411972,2666.8,2666.3,0.7798]
[1750108089329,5.12411972,2666.8,2666.3,6.173]
[1750108089330,3.75015199,2666.6,2666.3,6.173]
[1750108089527,2.13101069,2666.8,2666.3,6.172]
[1750108089528,3.75002239,2666.7,2666.3,6.172]
[1750108090221,3.7500963,2666.6,2666.3,6.172]
[1750108090823,3.7500318,2666.7,2666.3,6.172]
[1750108092052,3.75009925,2666.6,2666.3,6.172]
[1750108092251,5.88085801,2666.8,2666.2,0.02688214]
[1750108092252,1.3743,2666.8,2666.2,0.02688214]
[1750108092437,3.75035229,2666.5,2666.2,6.19888214]
[1750108092614,3.75043409,2666.4,2666.2,0.02688214]
[1750108092816,3.75043409,2666.4,2666.2,6.19888214]
[1750108094777,3.75030024,2666.5,2666.2,6.19888214]
[1750108095941,3.75030024,2666.5,2666.2,0.02688214]
[1750108096141,10.55,2666.6,2666.2,6.19888214]
[1750108096348,4.30015361,2666.6,2666.2,9.94948359]
[1750108097064,4.30015361,2666.6,2666.2,0.02688214]
[1750108097368,4.30015361,2666.6,2666.2,6.19888214]
[1750108099472,14.30051569,2666.3,2666.2,0.02688214]
[1750108099678,15.91651569,2666.3,2666.2,0.02688214]
[1750108101158,0.773,2664.8,2664.0,1.48888112]
[1750108101325,0.773,2664.8,2663.1,1.89013585]
[1750108101326,5.05121855,2664.2,2663.1,1.89013585]
[1750108101530,21.31521855,2664.2,2663.1,1.89013585]
[1750108101744,21.31521855,2664.2,2663.1,0.05]
[1750108101745,22.14220575,2664.2,2663.1,0.05]
[1750108101943,22.14220575,2664.2,2663.1,0.08754552]
[1750108102178,23.03800812,2664.2,2663.1,0.05]
[1750108102470,22.14220575,2664.2,2663.1,0.05]
[1750108102707,23.03586302,2664.2,2663.1,0.05]
[1750108102847,26.90286302,2664.2,2663.1,0.05]
[1750108103374,0.55,2663.2,2663.1,0.05]
[1750108103588,1.617,2663.2,2663.1,0.05]
[1750108103748,5.37188134,2663.2,2663.1,0.05]
[1750108104387,24.41024612,2663.2,2663.1,0.05]
[1750108105369,16.52124612,2663.2,2663.1,0.05]
[1750108105672,24.41524612,2663.2,2663.1,0.05]
[1750108105882,21.65188134,2663.2,2663.1,0.05]
[1750108106035,22.20188134,2663.2,2663.1,0.05]
[1750108106575,14.30488134,2663.2,2663.1,0.05]
[1750108106749,15.92188134,2663.2,2663.1,0.05]
[1750108108980,1.617,2663.2,2663.1,0.05]
[1750108109560,3.12326371,2663.2,2663.1,0.05]
[1750108110292,1.50626371,2663.2,2663.1,0.05]
[1750108110784,1.50626371,2663.2,2663.1,4.58082234]
[1750108110995,1.50626371,2663.2,2663.1,5.41817453]
[1750108117347,5.26114505,2663.2,2663.1,0.05]
[1750108119890,5.81114505,2663.2,2663.1,0.05]
[1750108121089,1.50626371,2663.2,2663.1,0.05]
[1750108121674,15.81114505,2663.2,2663.1,0.05]
[1750108121878,18.780844,2663.2,2663.1,0.05]
[1750108122261,13.72726371,2663.2,2663.1,0.05]
[1750108122460,17.48214505,2663.2,2663.1,0.05]
[1750108122661,2.05626371,2663.2,2663.1,0.05]
[1750108124174,5.81114505,2663.2,2663.1,0.05]
[1750108127506,15.81114505,2663.2,2663.1,0.05]
[1750108127706,26.96779652,2663.2,2663.1,0.05]
[1750108127862,28.64579652,2663.2,2663.1,0.05]
[1750108128069,27.83179652,2663.2,2663.1,0.05]
[1750108128270,21.55079652,2663.2,2663.1,0.05]
[1750108128470,18.37410547,2663.2,2663.1,0.05]
[1750108130283,20.61359343,2663.2,2663.1,0.05]
[1750108130675,26.89359343,2663.2,2663.1,0.05]
[1750108132021,18.94259343,2663.2,2663.1,0.05]
[1750108132192,20.61359343,2663.2,2663.1,0.05]
[1750108132395,18.37410547,2663.2,2663.1,0.05]
[1750108133014,14.61922413,2663.2,2663.1,0.05]
[1750108133215,14.06922413,2663.2,2663.1,0.05]
[1750108133418,2.39822413,2663.2,2663.1,0.8054]
[1750108134089,2.39822413,2663.2,2663.1,0.05]
[1750108137225,1.50626371,2663.2,2663.1,0.05]
[1750108137526,2.40484224,2663.2,2663.1,0.05]
[1750108139030,1.50626371,2663.2,2663.1,0.05]
[1750108140595,1.50626371,2663.2,2663.1,4.59861649]
[1750108140797,1.50626371,2663.2,2663.1,5.37976783]
[1750108142426,1.50626371,2663.2,2663.1,4.62372234]
[1750108144716,1.50626371,2663.2,2663.1,4.66126897]
[1750108145608,1.50626371,2663.2,2663.1,4.62372234]
[1750108156150,1.50626371,2663.2,2663.1,0.05]
[1750108156356,1.50626371,2663.2,2663.1,10.04802234]
[1750108163167,1.50626371,2663.2,2663.1,11.50335054]
[1750108163372,1.50626371,2663.2,2663.1,12.33405054]
[1750108164429,1.50626371,2663.2,2663.1,6.09105054]
[1750108164773,0.53,2663.3,2663.2,3.75488134]
[1750108165068,3.75404298,2663.8,2663.3,3.75469624]
[1750108165270,0.4532343,2663.7,2663.4,6.231]
[1750108165600,0.8224,2663.6,2663.5,6.232]
[1750108167447,0.8224,2663.6,2663.3,3.75468704]
[1750108167648,0.8224,2663.6,2663.5,6.232]